fUSD/lending_fUSD_20240601
["ID","MTS","AMOUNT","RATE_DAILY","PERIOD"]
[328362679,1717247443237,-445.713,0.00013804,2]
[328362680,1717247443246,-1063.0,0.00013804,2]
[328362681,1717247443255,-800.0,0.00013807,2]
[328362682,1717247443264,-383.09627417,0.0001385,2]
[328362683,1717247443274,-3016.4366,0.0001385,2]
[328362684,1717247443284,-176.01152078,0.00013859,2]
[328362685,1717247443293,-500.0,0.00013887,2]
[328362686,1717247443302,-500.0,0.00013887,2]
[328362687,1717247443312,-1000.0,0.00013888,2]
[328362688,1717247443322,-500.0,0.00013888,2]
[328362689,1717247443331,-200.0,0.00013888,2]
[328362690,1717247443487,-3976.86575122,0.000139,2]
[328362691,1717247443497,-153.75932068,0.000139,2]
[328362693,1717247443506,-383.09627417,0.000139,2]
[328362695,1717247443516,-174.15984609,0.000139,2]
[328362697,1717247443525,-1700.0,0.000139,5]
[328362698,1717247443535,-654.72926774,0.000139,2]
[328362699,1717247443545,-234.53919679,0.000139,2]
[328362700,1717247443555,-5648.69603441,0.000139,2]
[328362701,1717247443564,-1868.32889261,0.000139,2]
[328362703,1717247443574,-1000.0,0.000139,2]
[328362705,1717247443584,-5197.0233297,0.00013978,2]
[328362707,1717247443593,-783.00658811,0.00013987,2]
[328362708,1717247443603,-72804.6739434,0.00013988,2]
[328362709,1717247443612,-8785.5790663,0.00013988,2]
[328362710,1717247443622,-194.21342129,0.0001399,2]
[328362711,1717247443631,-194.21342129,0.0001399,2]
[328362712,1717247443640,-194.21342129,0.0001399,2]
[328362713,1717247443649,-150.91,0.0001399,2]
[328362714,1717247443659,-3631.264,0.00013997,2]
[328362715,1717247443668,-659.73181939,0.00013998,2]
[328362716,1717247443678,-523.81480906,0.00013998,2]
[328362717,1717247443687,-410.08555038,0.00013998,2]
[328362718,1717247443697,-155.0,0.00013998,2]
[328362719,1717247443706,-318.017811,0.00013998,2]
[328362721,1717247443716,-155.44409595,0.00013998,2]
[328362723,1717247443724,-161.73963544,0.00013998,2]
[328362724,1717247443733,-237.22996103,0.00013998,2]
[328362726,1717247443742,-155.58439691,0.00013998,2]
[328362728,1717247443751,-237.20973575,0.00013998,2]
[328362730,1717247443761,-306.00607341,0.00013998,2]
[328362733,1717247443771,-408.52002494,0.00013998,2]
[328362735,1717247443780,-451.25012379,0.00013998,2]
[328362736,1717247443789,-339.08721062,0.00013998,2]
[328362738,1717247443799,-364.60298157,0.00013998,2]
[328362741,1717247443808,-159.12927082,0.00013998,2]
[328362743,1717247443817,-799.89337506,0.00013998,2]
[328362744,1717247443826,-1125.12131999,0.00013998,2]
[328362746,1717247443836,-164.99574182,0.00013998,2]
[328362748,1717247443845,-215.84388429,0.00013998,2]
[328362750,1717247443854,-155.44993424,0.00013998,2]
[328362752,1717247443864,-182.67918852,0.00013998,2]
[328362754,1717247443873,-155.24290461,0.00013998,2]
[328362756,1717247443883,-2582.96750816,0.00013998,2]
[328362759,1717247443893,-200.78650338,0.00013998,2]
[328362761,1717247443902,-35378.96571757,0.00013998,2]
[328362763,1717247443912,-156.22688712,0.00013998,2]
[328362765,1717247443921,-7639.2753506,0.00013999,2]
[328362767,1717247443930,-155.0,0.00013999,2]
[328362769,1717247443939,-383.45368792,0.00013999,2]
[328362771,1717247443948,-1274.02294122,0.00013999,2]
[328362773,1717247443958,-655634.85869763,0.00014,2]
[328362775,1717247443970,-20693.84393762,0.00014,2]
[328362777,1717247443981,-1236.13216261,0.00014,2]
[328362779,1717247443992,-2062.83919417,0.00014,2]
[328362795,1717247445953,-500.0,0.00014,2]
[328362796,1717247446081,-2026.77504163,0.00014,2]
[328362799,1717247446095,-509.74218458,0.00014,2]
[328362809,1717247447880,-295.21458624,0.00014,2]
[328362810,1717247447976,-3207.56,0.00014,2]
[328362811,1717247447992,-2200.0,0.00014,2]
[328362812,1717247448004,-1168.77195025,0.00014,2]
[328362813,1717247448097,-403.98469614,0.00014,2]
[328362826,1717247546317,25000.0,0.00034858,30]
[328362827,1717247627204,50000.0,0.00031,30]
[328362828,1717247681390,25000.0,0.00034858,30]
[328362829,1717247726021,50000.0,0.00031,30]
[328362830,1717247784982,25000.0,0.00034858,30]
[328362831,1717247788027,167.58,0.00029808,30]
[328362832,1717247845523,50000.0,0.00031,30]
[328362833,1717247905547,25000.0,0.00034838,30]
[328362834,1717247908444,1000.0,0.00034838,30]
[328362835,1717247908828,1000.0,0.00034838,30]
[328362836,1717247909176,1000.0,0.00034838,30]
[328362837,1717247909538,1000.0,0.00034838,30]
[328362838,1717247909873,1000.0,0.00034838,30]
[328362839,1717247910180,1000.0,0.00034838,30]
[328362840,1717247910498,1000.0,0.00034838,30]
[328362841,1717247910797,1000.0,0.00034838,30]
[328362842,1717247911114,1000.0,0.00034838,30]
[328362843,1717247911688,1644.359942,0.00034838,30]
[328362844,1717247965907,50000.0,0.00031,30]
[328362845,1717248024978,25000.0,0.00034838,30]
[328362846,1717248085529,50000.0,0.00031,30]
[328362847,1717248145346,25000.0,0.00034838,30]
[328362848,1717248228623,50000.0,0.00031,30]
[328362849,1717248237145,900.0,0.00031,32]
[328362850,1717248245732,900.0,0.0003,31]
[328362851,1717248270096,25000.0,0.00034838,30]
[328362852,1717248272686,900.0,0.00031,32]
[328362853,1717248281557,900.0,0.0003,31]
[328362854,1717248319477,1043.191392,0.00031,30]
[328362855,1717248325004,50000.0,0.00031,30]
[328362856,1717248341164,-446.72,0.00010952,2]
[328362857,1717248341188,-239.08665083,0.00011562,2]
[328362858,1717248380317,153.61,0.00029808,30]
[328362859,1717248385169,25000.0,0.00034838,30]
[328362860,1717248428165,-275.99999202,0.00010948,2]
[328362861,1717248514751,150.0,0.00034838,30]
[328362864,1717248554169,-555.68209446,0.00010944,2]
[328362865,1717248554191,-223.00124554,0.00010944,2]
[328362866,1717248558105,-52.99875446,0.00010944,2]
[328362867,1717248558124,-535.5541103,0.00010945,2]
[328362868,1717248558145,-2239.83459451,0.00010946,2]
[328362869,1717248558163,-403.38946047,0.00011563,2]
[328362870,1717248558184,-27331.90550719,0.00011565,2]
[328362871,1717248566098,-463.06841205,0.00011564,2]
[328362872,1717248566118,-40.90880472,0.00011565,2]
[328362874,1717248573098,-534.3597451,0.00011564,2]
[328362875,1717248573118,-6229.48739358,0.00011565,2]
[328362883,1717248632210,-1528.35103245,0.00011565,2]
[328362884,1717248632247,-535.64602074,0.00011565,2]
[328362885,1717248632412,-3244.55441955,0.00011565,2]
[328362910,1717248638068,-2175.06956009,0.00011565,2]
[328362914,1717248638079,-1993.5875788,0.00011565,2]
[328362918,1717248638116,-1677.21021408,0.00011565,2]
[328362919,1717248638125,-155.0,0.00011565,2]
[328362920,1717248638134,-5814.4974,0.00011567,2]
[328362921,1717248638143,-272.23343741,0.00012742,2]
[328362922,1717248638154,-506.54496974,0.00012742,2]
[328362923,1717248638169,-1019.14159285,0.00012742,2]
[328362924,1717248638178,-1797.92,0.00012746,2]
[328362925,1717248638187,-1797.92,0.00012749,2]
[328362926,1717248638196,-1797.92,0.00012752,2]
[328362927,1717248638205,-1797.92,0.00012756,2]
[328362928,1717248638214,-1797.92,0.00012759,2]
[328362929,1717248638223,-1797.92,0.00012763,2]
[328362930,1717248638232,-1797.92,0.00012766,2]
[328362931,1717248638240,-1797.92,0.00012769,2]
[328362932,1717248638250,-1797.92,0.00012773,2]
[328362933,1717248638259,-1797.92,0.00012776,2]
[328362934,1717248638268,-1797.92,0.00012779,2]
[328362935,1717248638277,-1797.92,0.00012783,2]
[328362936,1717248638285,-1797.92,0.00012786,2]
[328362937,1717248638294,-1797.92,0.00012789,2]
[328362938,1717248638303,-1797.92,0.00012793,2]
[328362939,1717248638312,-1797.92,0.00012796,2]
[328362940,1717248638321,-1797.92,0.00012799,2]
[328362941,1717248638329,-1797.92,0.00012803,2]
[328362942,1717248638339,-1797.92,0.00012806,2]
[328362943,1717248638348,-480.0,0.00012824,2]
[328362944,1717248638357,-250.0,0.00012856,2]
[328362945,1717248638366,-1202.03,0.0001291,2]
[328362946,1717248638374,-167.56,0.00012974,2]
[328362947,1717248638383,-446.72,0.00013216,2]
[328362948,1717248638392,-520.0,0.00013394,2]
[328362949,1717248638400,-945.16217336,0.00013578,2]
[328362950,1717248638409,-161.5746,0.000136,2]
[328362951,1717248638418,-1000.0,0.000136,2]
[328362952,1717248638427,-155.0,0.00013698,2]
[328362953,1717248638435,-301.81884233,0.00013698,2]
[328362954,1717248638444,-4436.90604673,0.00013698,2]
[328362955,1717248638453,-463.06841205,0.00013698,2]
[328362956,1717248638462,-602.7,0.00013699,2]
[328362957,1717248638470,-7528.26513526,0.00013699,2]
[328362958,1717248638479,-5284.55875445,0.00013699,2]
[328362959,1717248638488,-72.31658472,0.000137,2]
[328362960,1717248638512,-300.88,0.000137,2]
[328362961,1717248638523,-156170.73561528,0.000137,2]
[328362962,1717248638532,-17548.434,0.000137,2]
[328362963,1717248638541,-200.0,0.000137,5]
[328362964,1717248638550,-1226.0,0.000137,2]
[328362965,1717248638560,-500.0,0.000138,5]
[328362966,1717248638570,-153.2385097,0.00013845,2]
[328362967,1717248638579,-3658.91168612,0.00013845,2]
[328362968,1717248638588,-7500.0,0.00013845,2]
[328362969,1717248638597,-153.23850967,0.00013859,2]
[328362970,1717248638606,-180.76412638,0.00013859,2]
[328362971,1717248638615,-2513.69717,0.0001386,2]
[328362972,1717248638624,-153.23850967,0.00013873,2]
[328362973,1717248638632,-153.23850967,0.00013886,2]
[328362974,1717248638641,-500.0,0.00013887,2]
[328362975,1717248638650,-500.0,0.00013888,2]
[328362976,1717248638658,-44.61074659,0.00013888,2]
[328362983,1717248641999,-155.38925341,0.00013888,2]
[328362984,1717248642008,-322.45777267,0.00013889,2]
[328362985,1717248642017,-300.79394006,0.000139,2]
[328362986,1717248642028,-523.51449039,0.000139,2]
[328362987,1717248642038,-924.79150113,0.000139,2]
[328362998,1717248643243,-3272.30435205,0.000139,2]
[328362999,1717248643459,-531.24159769,0.000139,2]
[328363000,1717248643468,-512.5345,0.000139,2]
[328363001,1717248643479,-3645.46027197,0.000139,2]
[328363002,1717248643488,-1233.838,0.000139,2]
[328363003,1717248643503,-153.75932063,0.000139,2]
[328363004,1717248643513,-153.23850967,0.000139,2]
[328363005,1717248643523,-800.0,0.000139,5]
[328363006,1717248643533,-1904.0,0.000139,2]
[328363007,1717248643545,-446.0,0.00013945,2]
[328363008,1717248643554,-2398.0,0.00013945,2]
[328363009,1717248643564,-797.0,0.00013945,2]
[328363010,1717248643576,-164.0,0.00013945,2]
[328363011,1717248643587,-216.0,0.00013945,2]
[328363012,1717248643596,-1127.0,0.00013945,2]
[328363013,1717248643606,-3057.38734557,0.00013945,2]
[328363014,1717248643618,-111.61265443,0.00013945,2]
[328363015,1717248643628,-187.49715975,0.00013945,2]
[328363032,1717248646257,-169.50284025,0.00013945,2]
[328363033,1717248646267,-101.54261636,0.00013945,2]
[328363040,1717248892901,153.61,0.00029808,30]
[328363042,1717248994874,4007.86962418,0.0001,2]
[328363047,1717249032946,548315.26338592,0.0001,2]
[328363048,1717249034567,154.999999,0.00034838,30]
[328363049,1717249041351,155.0,0.0001,2]
[328363050,1717249050968,27038.52195932,0.0001,2]
[328363051,1717249055359,155.54903631,0.0001,2]
[328363052,1717249412521,50000.0,0.00031,30]
[328363053,1717249474057,25000.0,0.00034834,30]
[328363054,1717249482947,504.9,9.741e-05,2]
[328363056,1717249549707,50000.0,0.00031,30]
[328363057,1717249584817,25000.0,0.00034834,30]
[328363058,1717249594313,153.61,0.00029808,30]
[328363059,1717249608872,539.16904905,0.00034,90]
[328363060,1717249646158,-221.42345004,0.00010843,2]
[328363065,1717249684967,50000.0,0.00031,30]
[328363066,1717249705740,25000.0,0.00034833,30]
[328363070,1717249747113,-268.8327842,0.0001084,2]
[328363071,1717249747137,-4463.0,0.0001084,2]
[328363072,1717249747163,-150.0,0.00010842,2]
[328363073,1717249747183,-41371.3762158,0.00010843,2]
[328363078,1717249761124,-241.25864268,0.00010839,2]
[328363079,1717249761144,-41227.33651993,0.00010843,2]
[328363080,1717249762106,-40699.394,0.00010843,2]
[328363081,1717249763165,-205024.67894327,0.00010843,2]
[328363082,1717249763194,-160.33614663,0.00010846,2]
[328363083,1717249763215,-155.0,0.0001095,2]
[328363084,1717249763238,-160.33614662,0.00011156,2]
[328363085,1717249763260,-1000.0,0.00011399,2]
[328363086,1717249763282,-250.0,0.00011429,2]
[328363087,1717249763305,-160.33614662,0.00011465,2]
[328363088,1717249763327,-150.0,0.00011507,2]
[328363089,1717249763349,-152.19,0.00011514,2]
[328363090,1717249763370,-152.19,0.00011546,2]
[328363091,1717249763392,-1399.2,0.00011547,2]
[328363092,1717249763414,-11889.90757701,0.00011565,2]
[328363093,1717249763434,-180.26956979,0.00011565,2]
[328363094,1717249763455,-152.19,0.00011577,2]
[328363095,1717249763476,-152.19,0.00011609,2]
[328363096,1717249763498,-67.80299628,0.0001164,2]
[328363104,1717249825804,50000.0,0.00031,30]
[328363108,1717249833631,-267.98544995,0.00011639,2]
[328363110,1717249833641,-84.38700372,0.0001164,2]
[328363111,1717249833650,-932.46,0.00011641,2]
[328363112,1717249833661,-152.19,0.00011672,2]
[328363113,1717249833672,-152.19,0.00011703,2]
[328363114,1717249833682,-152.19,0.00011735,2]
[328363115,1717249833691,-200.0,0.00011755,2]
[328363116,1717249833700,-152.19,0.00011767,2]
[328363117,1717249833711,-152.19,0.00011798,2]
[328363118,1717249833720,-313.83474584,0.00011824,2]
[328363119,1717249833729,-87.21953555,0.0001183,2]
[328363120,1717249833744,-64.97046445,0.0001183,2]
[328363121,1717249833753,-152.19,0.00011861,2]
[328363122,1717249833762,-152.19,0.00011893,2]
[328363123,1717249833771,-152.19,0.00011925,2]
[328363124,1717249833780,-210.0,0.00011926,2]
[328363125,1717249833789,-152.19,0.00011956,2]
[328363126,1717249833798,-152.19,0.00011988,2]
[328363127,1717249833808,-504.9,0.00012004,2]
[328363128,1717249833818,-152.19,0.00012019,2]
[328363129,1717249833827,-152.19,0.00012051,2]
[328363130,1717249833836,-152.19,0.00012083,2]
[328363131,1717249833846,-152.19,0.00012114,2]
[328363132,1717249833858,-252.49288459,0.00012322,2]
[328363133,1717249833867,-1000.01492013,0.00012438,2]
[328363134,1717249833877,-542.85940274,0.00012446,2]
[328363135,1717249833886,-162.1014602,0.00012446,2]
[328363136,1717249833898,-782.68805491,0.00012446,2]
[328363137,1717249833907,-158.0964661,0.00012446,2]
[328363138,1717249833916,-1239.1727434,0.00012447,2]
[328363139,1717249833928,-376.30801913,0.00012447,2]
[328363140,1717249833939,-452.19863709,0.00012448,2]
[328363141,1717249833948,-746.54,0.0001274,2]
[328363142,1717249833959,-327.46,0.0001274,2]
[328363143,1717249833975,-300.63,0.0001274,2]
[328363144,1717249833984,-150.0,0.0001274,2]
[328363145,1717249833993,-150.0,0.0001274,2]
[328363146,1717249834003,-352.7,0.0001274,2]
[328363147,1717249834013,-1000.0,0.00012823,2]
[328363148,1717249834022,-172.61,0.00012875,2]
[328363149,1717249834031,-327.46,0.00013078,2]
[328363150,1717249834041,-285.84,0.00013278,2]
[328363151,1717249834051,-380.70037141,0.0001347,2]
[328363152,1717249834060,-512.5345,0.000135,2]
[328363153,1717249834070,-477.64002422,0.00013513,2]
[328363154,1717249834081,-150.0,0.00013562,2]
[328363155,1717249834090,-352.7,0.00013562,2]
[328363156,1717249834100,-150.0,0.00013562,2]
[328363157,1717249834114,-351.8,0.00013562,2]
[328363159,1717249834123,-150.0,0.00013562,2]
[328363161,1717249834133,-150.0,0.00013562,2]
[328363163,1717249834142,-300.0,0.00013562,2]
[328363165,1717249834151,-241.25864268,0.00013599,2]
[328363167,1717249834161,-11853.6267,0.000136,2]
[328363169,1717249834170,-245000.0,0.000136,2]
[328363171,1717249834179,-301.35,0.00013699,2]
[328363172,1717249834189,-200.0,0.000137,5]
[328363173,1717249834198,-1368.0,0.000137,2]
[328363175,1717249834207,-500.0,0.000138,5]
[328363176,1717249834216,-2751.73518,0.0001381,2]
[328363178,1717249834226,-182.34832825,0.00013859,2]
[328363179,1717249834237,-500.0,0.00013887,2]
[328363180,1717249834247,-500.0,0.00013888,2]
[328363181,1717249834255,-200.0,0.00013888,2]
[328363182,1717249834265,-531.24159769,0.000139,2]
[328363183,1717249834274,-3645.46027197,0.000139,2]
[328363184,1717249834283,-153.75932063,0.000139,2]
[328363185,1717249834292,-153.23850967,0.000139,2]
[328363186,1717249834302,-800.0,0.000139,5]
[328363187,1717249834311,-1904.0,0.000139,2]
[328363188,1717249834320,-4605.39676169,0.00013944,2]
[328363189,1717249834329,-299.37964955,0.00013945,2]
[328363190,1717249834338,-875.827,0.00013973,2]
[328363191,1717249834347,-327.0,0.00013973,2]
[328363192,1717249834357,-1645.0,0.00013973,2]
[328363193,1717249834365,-440.0,0.00013973,2]
[328363194,1717249834374,-1224.0,0.00013973,2]
[328363195,1717249834383,-1266.0,0.00013973,2]
[328363196,1717249834392,-614.0,0.00013973,2]
[328363197,1717249834400,-2398.0,0.00013973,2]
[328363198,1717249834409,-446.0,0.00013973,2]
[328363199,1717249834418,-164.0,0.00013973,2]
[328363200,1717249834427,-808.0,0.00013973,2]
[328363201,1717249834436,-1304.0,0.00013973,2]
[328363202,1717249834445,-216.0,0.00013973,2]
[328363203,1717249834454,-3169.0,0.00013973,2]
[328363204,1717249834464,-545.0,0.00013973,2]
[328363205,1717249834473,-5141.0,0.00013973,2]
[328363206,1717249834482,-37980.0,0.00013973,2]
[328363207,1717249834491,-1063.0,0.00013973,2]
[328363208,1717249834500,-150.0,0.00013973,2]
[328363209,1717249834509,-150.0,0.00013973,2]
[328363210,1717249834519,-109594.9846972,0.00013989,2]
[328363211,1717249834528,-10516.1949747,0.00013989,2]
[328363212,1717249834538,-5212.5048663,0.00013989,2]
[328363213,1717249834547,-150.95,0.0001399,2]
[328363214,1717249834557,-4183.75342342,0.00013999,2]
[328363215,1717249834567,-854.48115241,0.00013999,2]
[328363216,1717249834576,-38460.11329799,0.00014,2]
[328363217,1717249834724,-539.69020108,0.00014,2]
[328363218,1717249834749,-1188052.01502943,0.00014,2]
[328363219,1717249834761,-313.57105066,0.00014,2]
[328363220,1717249834773,-56302.48166905,0.00014,2]
[328363221,1717249834782,-578.18174443,0.00014,2]
[328363222,1717249834791,-500.0,0.00014,2]
[328363223,1717249834801,-500.0,0.00014,2]
[328363224,1717249834811,-500.0,0.00014,2]
[328363225,1717249834820,-500.0,0.00014,2]
[328363226,1717249834830,-788.0,0.00014,2]
[328363227,1717249834841,-19530.87437652,0.00014,2]
[328363228,1717249834854,-1319.092,0.00014,2]
[328363229,1717249834865,-544.92186477,0.00014,2]
[328363230,1717249834877,-306.66260882,0.00014,2]
[328363231,1717249835038,-2764.54538536,0.00014,2]
[328363232,1717249835050,-1245.53009067,0.00014,2]
[328363233,1717249835103,-0.01338865,0.00014,2]
[328363234,1717249835115,-2196.97847733,0.00014,2]
[328363235,1717249835130,-436.42285295,0.00014,2]
[328363236,1717249835142,-2444.23582188,0.00014,2]
[328363237,1717249835153,-293343.25064736,0.00014,2]
[328363238,1717249835162,-41467.58837109,0.00014,2]
[328363239,1717249835177,-1145.98145847,0.00014,2]
[328363245,1717249838378,-330.98596817,0.00014,2]
[328363246,1717249838390,-836.87762474,0.00014,2]
[328363247,1717249838401,-1466.88746637,0.00014,2]
[328363248,1717249838413,-415.10301408,0.00014,2]
[328363249,1717249838427,-707.70048889,0.00014,2]
[328363250,1717249838439,-941.00123225,0.00014,2]
[328363251,1717249838454,-709.08266212,0.00014,2]
[328363252,1717249838467,-26749.55696156,0.00014,2]
[328363253,1717249838479,-853.09015929,0.00014,2]
[328363254,1717249838491,-6679.08281249,0.00014,2]
[328363255,1717249838502,-1029.27,0.00014,2]
[328363256,1717249838514,-741.3170906,0.00014,2]
[328363257,1717249838526,-1000.00663,0.00014,2]
[328363258,1717249838537,-995.94,0.00014,2]
[328363259,1717249838549,-703.20536157,0.00014,2]
[328363260,1717249838560,-94361.15668865,0.00014,2]
[328363261,1717249838570,-500.0,0.00014,2]
[328363262,1717249838580,-500.0,0.00014,2]
[328363263,1717249838589,-500.0,0.00014,2]
[328363264,1717249838598,-500.0,0.00014,2]
[328363265,1717249838608,-500.0,0.00014,2]
[328363266,1717249838617,-500.0,0.00014,2]
[328363267,1717249838627,-151.0,0.00014,2]
[328363268,1717249838636,-151.0,0.00014,2]
[328363269,1717249838645,-151.0,0.00014,2]
[328363270,1717249838654,-151.0,0.00014,2]
[328363271,1717249838663,-151.0,0.00014,2]
[328363272,1717249838672,-151.0,0.00014,2]
[328363273,1717249838682,-155.641167,0.00014,2]
[328363274,1717249838691,-152.383499,0.00014,2]
[328363275,1717249838700,-151.0,0.00014,2]
[328363276,1717249838710,-151.0,0.00014,2]
[328363277,1717249838719,-151.0,0.00014,2]
[328363278,1717249838728,-151.0,0.00014,2]
[328363279,1717249838737,-230.327108,0.00014,2]
[328363280,1717249838746,-151.0,0.00014,2]
[328363281,1717249838755,-151.0,0.00014,2]
[328363282,1717249838764,-151.0,0.00014,2]
[328363283,1717249838774,-151.0,0.00014,2]
[328363284,1717249838783,-151.0,0.00014,2]
[328363285,1717249838792,-151.0,0.00014,2]
[328363286,1717249838803,-151.0,0.00014,2]
[328363288,1717249838812,-151.0,0.00014,2]
[328363290,1717249838821,-151.0,0.00014,2]
[328363292,1717249838830,-151.0,0.00014,2]
[328363294,1717249838839,-151.0,0.00014,2]
[328363296,1717249838849,-151.0,0.00014,2]
[328363298,1717249838858,-151.0,0.00014,2]
[328363300,1717249838868,-151.0,0.00014,2]
[328363302,1717249838877,-151.0,0.00014,2]
[328363304,1717249838886,-151.0,0.00014,2]
[328363306,1717249838898,-1226.0,0.00014,2]
[328363308,1717249838907,-3743.35,0.00014002,2]
[328363310,1717249838917,-3624.518,0.00014009,2]
[328363312,1717249838926,-3616.056,0.0001401,2]
[328363314,1717249838936,-3666.231,0.0001401,2]
[328363316,1717249838945,-3606.747,0.0001401,2]
[328363318,1717249838954,-172.61,0.00014241,2]
[328363320,1717249838965,-1000.0,0.00014248,2]
[328363322,1717249838976,-504.9,0.00014268,2]
[328363324,1717249838986,-932.46,0.00014381,2]
[328363326,1717249838995,-325.53994662,0.00015,2]
[328363328,1717249839004,-8096.57981275,0.00015,2]
[328363330,1717249839013,-258.0937081,0.00015,2]
[328363332,1717249839023,-155.0,0.00015,2]
[328363334,1717249839032,-620.13052654,0.00015,2]
[328363336,1717249839041,-92006.65908501,0.00015,2]
[328363338,1717249839052,-803.50130827,0.00015,2]
[328363340,1717249839061,-500.0,0.00015,2]
[328363342,1717249839071,-500.0,0.00015,2]
[328363344,1717249839081,-500.0,0.00015,2]
[328363346,1717249839092,-500.0,0.00015,2]
[328363348,1717249839102,-225.981602,0.00015,2]
[328363350,1717249839112,-151.0,0.00015,2]
[328363352,1717249839122,-151.0,0.00015,2]
[328363354,1717249839131,-163.62937,0.00015,2]
[328363356,1717249839141,-151.0,0.00015,2]
[328363357,1717249839151,-151.0,0.00015,2]
[328363359,1717249839161,-151.0,0.00015,2]
[328363361,1717249839171,-150.0,0.00015068,2]
[328363363,1717249839181,-295.0,0.00015123,2]
[328363365,1717249839191,-500.0,0.00015342,2]
[328363367,1717249839201,-500.0,0.00015342,2]
[328363369,1717249839210,-500.0,0.00015342,2]
[328363371,1717249839220,-500.0,0.00015342,2]
[328363373,1717249839229,-500.0,0.00015342,2]
[328363376,1717249839239,-500.0,0.00015342,2]
[328363378,1717249839254,-500.0,0.00015342,2]
[328363381,1717249839268,-500.0,0.00015342,2]
[328363383,1717249839282,-500.0,0.00015342,2]
[328363386,1717249839296,-500.0,0.00015342,2]
[328363388,1717249839307,-500.0,0.00015342,2]
[328363390,1717249839318,-500.0,0.00015342,2]
[328363392,1717249839331,-500.0,0.00015342,2]
[328363394,1717249839342,-500.0,0.00015342,2]
[328363397,1717249839354,-500.0,0.00015342,2]
[328363399,1717249839368,-500.0,0.00015342,2]
[328363401,1717249839380,-500.0,0.00015342,2]
[328363404,1717249839393,-500.0,0.00015342,2]
[328363406,1717249839405,-500.0,0.00015342,2]
[328363408,1717249839417,-500.0,0.00015342,2]
[328363411,1717249839430,-500.0,0.00015342,2]
[328363413,1717249839442,-500.0,0.00015342,2]
[328363415,1717249839454,-500.0,0.00015342,2]
[328363417,1717249839465,-500.0,0.00015342,2]
[328363420,1717249839477,-500.0,0.00015342,2]
[328363422,1717249839489,-500.0,0.00015342,2]
[328363424,1717249839500,-500.0,0.00015342,2]
[328363426,1717249839512,-500.0,0.00015342,2]
[328363429,1717249839525,-500.0,0.00015342,2]
[328363431,1717249839536,-500.0,0.00015342,2]
[328363433,1717249839548,-500.0,0.00015342,2]
[328363435,1717249839560,-500.0,0.00015342,2]
[328363437,1717249839570,-500.0,0.00015342,2]
[328363440,1717249839581,-500.0,0.00015342,2]
[328363442,1717249839592,-500.0,0.00015342,2]
[328363444,1717249839604,-500.0,0.00015342,2]
[328363446,1717249839615,-500.0,0.00015342,2]
[328363448,1717249839626,-500.0,0.00015342,2]
[328363451,1717249839638,-500.0,0.00015342,2]
[328363453,1717249839649,-500.0,0.00015342,2]
[328363455,1717249839662,-500.0,0.00015342,2]
[328363458,1717249839675,-500.0,0.00015342,2]
[328363460,1717249839687,-500.0,0.00015342,2]
[328363463,1717249839700,-500.0,0.00015342,2]
[328363465,1717249839710,-500.0,0.00015342,2]
[328363467,1717249839720,-500.0,0.00015342,2]
[328363469,1717249839730,-500.0,0.00015342,2]